fUSD/lending_fUSD_20241216
["ID","MTS","AMOUNT","RATE_DAILY","PERIOD"]
[345617436,1734389443869,-510.12689121,0.00024998,4]
[345617438,1734389443879,-241.02,0.00024998,4]
[345617439,1734389443888,-500.0,0.00024998,4]
[345617440,1734389443897,-500.0,0.00024998,4]
[345617441,1734389443906,-500.0,0.00024998,4]
[345617442,1734389443915,-430.86,0.00024998,4]
[345617443,1734389443925,-500.0,0.00024998,4]
[345617444,1734389443935,-587.45,0.00024998,4]
[345617445,1734389443944,-500.0,0.00024998,4]
[345617446,1734389443954,-500.0,0.00024998,4]
[345617447,1734389443963,-500.0,0.00024998,4]
[345617448,1734389443973,-500.0,0.00024998,4]
[345617449,1734389443983,-500.0,0.00024998,4]
[345617450,1734389443992,-500.0,0.00024998,4]
[345617451,1734389444001,-287.60387099,0.00024998,4]
[345617452,1734389444011,-152.449149,0.00024998,4]
[345617453,1734389444021,-639.39,0.00024998,4]
[345617454,1734389444030,-639.39,0.00024998,4]
[345617455,1734389444042,-572.33,0.00024998,4]
[345617456,1734389444052,-572.33,0.00024998,4]
[345617457,1734389444061,-500.0,0.00024998,4]
[345617458,1734389444071,-500.0,0.00024998,4]
[345617459,1734389444081,-1028.64,0.00024998,4]
[345617460,1734389444091,-1028.64,0.00024998,4]
[345617461,1734389444100,-500.0,0.00024998,4]
[345617462,1734389444109,-500.0,0.00024998,4]
[345617463,1734389444118,-1587.53,0.00024998,4]
[345617464,1734389444128,-1587.53,0.00024998,4]
[345617465,1734389444138,-206.37,0.00024998,4]
[345617466,1734389444148,-500.0,0.00024998,4]
[345617467,1734389444158,-500.0,0.00024998,4]
[345617468,1734389444167,-500.0,0.00024998,4]
[345617469,1734389444177,-500.0,0.00024998,4]
[345617470,1734389444187,-536.0,0.00024998,4]
[345617471,1734389444197,-500.0,0.00024998,4]
[345617472,1734389444209,-1481.59,0.00024998,4]
[345617473,1734389444218,-1481.59,0.00024998,4]
[345617474,1734389444227,-3861.96,0.00024998,4]
[345617475,1734389444237,-3861.96,0.00024998,4]
[345617476,1734389444248,-3861.96,0.00024998,4]
[345617477,1734389444257,-526.42,0.00024998,4]
[345617478,1734389444267,-525.77,0.00024998,4]
[345617479,1734389444277,-525.77,0.00024998,4]
[345617480,1734389444289,-525.77,0.00024998,4]
[345617481,1734389444298,-2396.31,0.00024998,4]
[345617482,1734389444308,-2396.31,0.00024998,4]
[345617483,1734389444318,-2396.31,0.00024998,4]
[345617484,1734389444327,-500.0,0.00024998,4]
[345617485,1734389444336,-512.92,0.00024998,4]
[345617486,1734389444346,-512.92,0.00024998,4]
[345617487,1734389444356,-512.92,0.00024998,4]
[345617488,1734389444366,-3536.68,0.00024998,4]
[345617489,1734389444375,-3536.68,0.00024998,4]
[345617490,1734389444385,-3536.68,0.00024998,4]
[345617491,1734389444394,-500.0,0.00024998,4]
[345617492,1734389444404,-500.0,0.00024998,4]
[345617493,1734389444413,-500.0,0.00024998,4]
[345617494,1734389444423,-9004.41,0.00024998,4]
[345617495,1734389444432,-500.0,0.00024998,4]
[345617496,1734389444441,-9004.41,0.00024998,4]
[345617497,1734389444451,-9004.41,0.00024998,4]
[345617498,1734389444460,-500.0,0.00024998,4]
[345617499,1734389444470,-500.0,0.00024998,4]
[345617500,1734389444479,-500.0,0.00024998,4]
[345617501,1734389444489,-500.0,0.00024998,4]
[345617502,1734389444499,-500.0,0.00024998,4]
[345617503,1734389444508,-500.0,0.00024998,4]
[345617504,1734389444518,-500.0,0.00024998,4]
[345617505,1734389444527,-500.0,0.00024998,4]
[345617506,1734389444538,-500.0,0.00024998,4]
[345617507,1734389444548,-287.19531095,0.00024998,4]
[345617508,1734389444557,-500.0,0.00024998,4]
[345617509,1734389444566,-500.0,0.00024998,4]
[345617510,1734389444576,-500.0,0.00024998,4]
[345617511,1734389444585,-1158.19,0.00024998,4]
[345617512,1734389444594,-1158.19,0.00024998,4]
[345617513,1734389444604,-3769.14,0.00024998,4]
[345617514,1734389444614,-3769.14,0.00024998,4]
[345617515,1734389444623,-300.0,0.00024999,10]
[345617516,1734389444633,-300.0,0.00024999,10]
[345617517,1734389444642,-300.0,0.00024999,10]
[345617518,1734389444652,-300.0,0.00024999,10]
[345617519,1734389444661,-300.0,0.00024999,10]
[345617520,1734389444671,-78101.51,0.00024999,2]
[345617521,1734389444681,-150.0,0.00024999,30]
[345617522,1734389444691,-906.3175,0.00024999,2]
[345617523,1734389444700,-2000.0,0.00024999,2]
[345617524,1734389444710,-2000.0,0.00024999,2]
[345617525,1734389444719,-2000.0,0.00024999,2]
[345617526,1734389444729,-1000.0,0.00024999,7]
[345617527,1734389444739,-1000.0,0.00024999,17]
[345617528,1734389444749,-1000.0,0.00024999,15]
[345617529,1734389444758,-1000.0,0.00024999,12]
[345617530,1734389444768,-500.0,0.00024999,4]
[345617531,1734389444777,-500.0,0.00024999,4]
[345617532,1734389444790,-500.0,0.00024999,4]
[345617533,1734389444799,-500.0,0.00024999,4]
[345617534,1734389444809,-1000.0,0.00024999,2]
[345617535,1734389444818,-1608.88,0.00024999,4]
[345617536,1734389444827,-1608.88,0.00024999,4]
[345617537,1734389444837,-1608.88,0.00024999,4]
[345617538,1734389444846,-1608.88,0.00024999,4]
[345617539,1734389444856,-1608.88,0.00024999,4]
[345617540,1734389444865,-1608.88,0.00024999,4]
[345617541,1734389444875,-1608.88,0.00024999,4]
[345617542,1734389444884,-1608.88,0.00024999,4]
[345617543,1734389444893,-1608.88,0.00024999,4]
[345617544,1734389444903,-1608.88,0.00024999,4]
[345617545,1734389444912,-1608.88,0.00024999,4]
[345617546,1734389444922,-1608.88,0.00024999,4]
[345617547,1734389444932,-1608.88,0.00024999,4]
[345617548,1734389444941,-1608.88,0.00024999,4]
[345617549,1734389444950,-1608.88,0.00024999,4]
[345617550,1734389444960,-1608.88,0.00024999,4]
[345617551,1734389444971,-1608.88,0.00024999,4]
[345617552,1734389444980,-1608.88,0.00024999,4]
[345617553,1734389444990,-1608.88,0.00024999,4]
[345617554,1734389444999,-1608.94292288,0.00024999,4]
[345617555,1734389445009,-500.0,0.00024999,4]
[345617556,1734389445018,-500.0,0.00024999,4]
[345617557,1734389445027,-500.0,0.00024999,4]
[345617558,1734389445041,-500.0,0.00024999,4]
[345617559,1734389445050,-310.17,0.00024999,4]
[345617560,1734389445059,-500.0,0.00024999,4]
[345617561,1734389445072,-500.0,0.00024999,4]
[345617562,1734389445081,-500.0,0.00024999,4]
[345617563,1734389445090,-500.0,0.00024999,4]
[345617564,1734389445100,-500.0,0.00024999,4]
[345617565,1734389445109,-500.0,0.00024999,4]
[345617566,1734389445119,-500.0,0.00024999,4]
[345617567,1734389445128,-567.83815355,0.00024999,4]
[345617568,1734389445137,-500.0,0.00024999,4]
[345617569,1734389445147,-1027.14,0.00024999,2]
[345617570,1734389445156,-500.0,0.00024999,4]
[345617571,1734389445165,-500.0,0.00024999,4]
[345617572,1734389445175,-1000.0,0.00024999,2]
[345617573,1734389445184,-1000.0,0.00024999,2]
[345617574,1734389445195,-1000.0,0.00024999,2]
[345617575,1734389445209,-1007.92283234,0.00024999,2]
[345617576,1734389445219,-323.35,0.00024999,4]
[345617577,1734389445228,-500.0,0.00024999,4]
[345617578,1734389445238,-500.0,0.00024999,4]
[345617579,1734389445248,-500.0,0.00024999,4]
[345617580,1734389445257,-500.0,0.00024999,4]
[345617581,1734389445267,-500.0,0.00024999,4]
[345617582,1734389445276,-500.0,0.00024999,4]
[345617583,1734389445289,-500.0,0.00024999,4]
[345617584,1734389445298,-500.0,0.00024999,4]
[345617585,1734389445308,-500.0,0.00024999,4]
[345617586,1734389445317,-500.0,0.00024999,4]
[345617587,1734389445327,-500.0,0.00024999,4]
[345617588,1734389445336,-564.90220054,0.00024999,4]
[345617589,1734389445346,-500.0,0.00024999,4]
[345617590,1734389445355,-372.05,0.00024999,4]
[345617591,1734389445366,-500.0,0.00024999,4]
[345617592,1734389445375,-500.0,0.00024999,4]
[345617593,1734389445384,-500.0,0.00024999,4]
[345617594,1734389445393,-500.0,0.00024999,4]
[345617595,1734389445403,-500.0,0.00024999,4]
[345617596,1734389445412,-500.0,0.00024999,4]
[345617597,1734389445422,-500.0,0.00024999,4]
[345617598,1734389445431,-347.53603016,0.00024999,4]
[345617599,1734389445440,-1065.72,0.00024999,4]
[345617600,1734389445450,-1065.72,0.00024999,4]
[345617601,1734389445459,-1065.72,0.00024999,4]
[345617602,1734389445468,-1065.72,0.00024999,4]
[345617603,1734389445478,-1065.72,0.00024999,4]
[345617604,1734389445488,-1065.72,0.00024999,4]
[345617605,1734389445497,-1065.72,0.00024999,4]
[345617606,1734389445506,-1065.72,0.00024999,4]
[345617607,1734389445517,-1065.72,0.00024999,4]
[345617608,1734389445527,-1065.72,0.00024999,4]
[345617609,1734389445543,-1065.72,0.00024999,4]
[345617610,1734389445553,-1065.72,0.00024999,4]
[345617611,1734389445562,-1065.72,0.00024999,4]
[345617612,1734389445573,-1065.72,0.00024999,4]
[345617613,1734389445583,-1065.90813256,0.00024999,4]
[345617614,1734389445592,-500.0,0.00024999,4]
[345617615,1734389445602,-500.0,0.00024999,4]
[345617616,1734389445611,-500.0,0.00024999,4]
[345617617,1734389445621,-500.0,0.00024999,4]
[345617618,1734389445630,-588.62,0.00024999,4]
[345617619,1734389445639,-500.0,0.00024999,4]
[345617620,1734389445649,-165.67924185,0.00024999,4]
[345617621,1734389445659,-152.449149,0.00024999,4]
[345617622,1734389445668,-152.449149,0.00024999,4]
[345617623,1734389445678,-152.449149,0.00024999,4]
[345617624,1734389445688,-152.449149,0.00024999,4]
[345617625,1734389445698,-639.39,0.00024999,4]
[345617626,1734389445707,-639.39,0.00024999,4]
[345617627,1734389445717,-639.39,0.00024999,4]
[345617628,1734389445727,-639.39,0.00024999,4]
[345617629,1734389445736,-639.39,0.00024999,4]
[345617630,1734389445746,-639.39,0.00024999,4]
[345617631,1734389445755,-639.39,0.00024999,4]
[345617632,1734389445766,-639.39,0.00024999,4]
[345617633,1734389445775,-639.39,0.00024999,4]
[345617634,1734389445786,-639.39,0.00024999,4]
[345617635,1734389445795,-639.39,0.00024999,4]
[345617636,1734389445805,-639.39,0.00024999,4]
[345617637,1734389445816,-639.51903272,0.00024999,4]
[345617638,1734389445825,-572.33,0.00024999,4]
[345617639,1734389445835,-572.33,0.00024999,4]
[345617640,1734389445844,-572.33,0.00024999,4]
[345617641,1734389445854,-572.33,0.00024999,4]
[345617642,1734389445864,-572.33,0.00024999,4]
[345617643,1734389445873,-572.33,0.00024999,4]
[345617644,1734389445883,-572.33,0.00024999,4]
[345617645,1734389445894,-572.33,0.00024999,4]
[345617646,1734389445903,-572.33,0.00024999,4]
[345617647,1734389445913,-572.33,0.00024999,4]
[345617648,1734389445922,-572.33,0.00024999,4]
[345617649,1734389445932,-572.33,0.00024999,4]
[345617650,1734389445942,-572.33,0.00024999,4]
[345617651,1734389445951,-572.33,0.00024999,4]
[345617652,1734389445960,-572.4,0.00024999,4]
[345617653,1734389445970,-500.0,0.00024999,4]
[345617654,1734389445983,-1028.64,0.00024999,4]
[345617655,1734389445993,-1028.64,0.00024999,4]
[345617656,1734389446003,-1028.64,0.00024999,4]
[345617657,1734389446012,-1028.64,0.00024999,4]
[345617658,1734389446022,-1028.64,0.00024999,4]
[345617659,1734389446034,-1028.64,0.00024999,4]
[345617660,1734389446044,-1028.64,0.00024999,4]
[345617661,1734389446053,-1028.64,0.00024999,4]
[345617662,1734389446063,-1028.64,0.00024999,4]
[345617663,1734389446072,-1028.64,0.00024999,4]
[345617664,1734389446082,-1028.64,0.00024999,4]
[345617665,1734389446091,-1028.64,0.00024999,4]
[345617666,1734389446101,-1028.64,0.00024999,4]
[345617667,1734389446111,-500.0,0.00024999,4]
[345617668,1734389446120,-1028.64,0.00024999,4]
[345617669,1734389446130,-500.0,0.00024999,4]
[345617670,1734389446139,-1028.77417844,0.00024999,4]
[345617671,1734389446148,-500.0,0.00024999,4]
[345617672,1734389446158,-500.0,0.00024999,4]
[345617673,1734389446168,-500.0,0.00024999,4]
[345617674,1734389446179,-500.0,0.00024999,4]
[345617675,1734389446189,-500.0,0.00024999,4]
[345617676,1734389446200,-500.0,0.00024999,4]
[345617677,1734389446210,-500.0,0.00024999,4]
[345617678,1734389446220,-500.0,0.00024999,4]
[345617679,1734389446229,-244.22887392,0.00024999,4]
[345617680,1734389446362,-159.064897,0.00024999,4]
[345617681,1734389446371,-189.427915,0.00024999,4]
[345617682,1734389446380,-1587.53,0.00024999,4]
[345617683,1734389446390,-1587.53,0.00024999,4]
[345617684,1734389446399,-1587.53,0.00024999,4]
[345617685,1734389446408,-1587.53,0.00024999,4]
[345617686,1734389446417,-1587.53,0.00024999,4]
[345617687,1734389446427,-1587.53,0.00024999,4]
[345617688,1734389446437,-1587.53,0.00024999,4]
[345617689,1734389446446,-1587.53,0.00024999,4]
[345617690,1734389446456,-1587.53,0.00024999,4]
[345617691,1734389446467,-1587.53,0.00024999,4]
[345617692,1734389446479,-1587.53,0.00024999,4]
[345617693,1734389446488,-1587.53,0.00024999,4]
[345617694,1734389446498,-1587.73,0.00024999,4]
[345617695,1734389446508,-500.0,0.00024999,4]
[345617696,1734389446520,-500.0,0.00024999,4]
[345617697,1734389446529,-500.0,0.00024999,4]
[345617698,1734389446542,-500.0,0.00024999,4]
[345617699,1734389446552,-500.0,0.00024999,4]
[345617700,1734389446562,-584.17,0.00024999,4]
[345617701,1734389446572,-1481.59,0.00024999,4]
[345617702,1734389446582,-1481.59,0.00024999,4]
[345617703,1734389446592,-1481.59,0.00024999,4]
[345617704,1734389446602,-1481.59,0.00024999,4]
[345617705,1734389446611,-1481.59,0.00024999,4]
[345617706,1734389446621,-1481.59,0.00024999,4]
[345617707,1734389446629,-1481.59,0.00024999,4]
[345617708,1734389446639,-1481.59,0.00024999,4]
[345617709,1734389446648,-1481.59,0.00024999,4]
[345617710,1734389446658,-1481.59,0.00024999,4]
[345617711,1734389446668,-1481.59,0.00024999,4]
[345617712,1734389446677,-1481.59,0.00024999,4]
[345617713,1734389446687,-1481.59,0.00024999,4]
[345617714,1734389446697,-1481.59,0.00024999,4]
[345617715,1734389446707,-1481.6394,0.00024999,4]
[345617716,1734389446717,-3861.96,0.00024999,4]
[345617717,1734389446726,-3861.96,0.00024999,4]
[345617718,1734389446737,-3861.96,0.00024999,4]
[345617719,1734389446746,-3861.96,0.00024999,4]
[345617721,1734389446756,-3861.96,0.00024999,4]
[345617723,1734389446765,-3861.96,0.00024999,4]
[345617725,1734389446775,-3861.96,0.00024999,4]
[345617727,1734389446786,-3861.96,0.00024999,4]
[345617728,1734389446796,-3861.96,0.00024999,4]
[345617729,1734389446806,-3861.96,0.00024999,4]
[345617730,1734389446815,-3861.96,0.00024999,4]
[345617731,1734389446824,-3862.10467101,0.00024999,4]
[345617732,1734389446835,-525.77,0.00024999,4]
[345617733,1734389446845,-525.77,0.00024999,4]
[345617734,1734389446855,-525.77,0.00024999,4]
[345617735,1734389446865,-525.77,0.00024999,4]
[345617736,1734389446875,-525.77,0.00024999,4]
[345617737,1734389446885,-525.77,0.00024999,4]
[345617738,1734389446895,-525.77,0.00024999,4]
[345617739,1734389446904,-525.77,0.00024999,4]
[345617740,1734389446913,-525.77,0.00024999,4]
[345617741,1734389446925,-525.77,0.00024999,4]
[345617742,1734389446934,-525.77,0.00024999,4]
[345617743,1734389446943,-525.93,0.00024999,4]
[345617744,1734389446953,-2396.31,0.00024999,4]
[345617745,1734389446962,-2396.31,0.00024999,4]
[345617746,1734389446971,-2396.31,0.00024999,4]
[345617747,1734389446981,-2396.31,0.00024999,4]
[345617748,1734389446991,-2396.31,0.00024999,4]
[345617749,1734389447000,-2396.31,0.00024999,4]
[345617750,1734389447010,-2396.31,0.00024999,4]
[345617751,1734389447019,-2396.31,0.00024999,4]
[345617752,1734389447029,-2396.31,0.00024999,4]
[345617753,1734389447040,-2396.31,0.00024999,4]
[345617754,1734389447050,-2396.31,0.00024999,4]
[345617755,1734389447060,-2396.34,0.00024999,4]
[345617756,1734389447070,-512.92,0.00024999,4]
[345617757,1734389447079,-512.92,0.00024999,4]
[345617758,1734389447089,-512.92,0.00024999,4]
[345617759,1734389447099,-512.92,0.00024999,4]
[345617760,1734389447108,-512.92,0.00024999,4]
[345617761,1734389447117,-512.92,0.00024999,4]
[345617762,1734389447127,-512.92,0.00024999,4]
[345617763,1734389447136,-512.92,0.00024999,4]
[345617764,1734389447146,-512.92,0.00024999,4]
[345617765,1734389447155,-512.92,0.00024999,4]
[345617766,1734389447164,-512.92,0.00024999,4]
[345617767,1734389447173,-513.1,0.00024999,4]
[345617768,1734389447182,-3536.68,0.00024999,4]
[345617769,1734389447192,-3536.68,0.00024999,4]
[345617770,1734389447206,-3536.68,0.00024999,4]
[345617771,1734389447215,-3536.68,0.00024999,4]
[345617772,1734389447224,-3536.68,0.00024999,4]
[345617773,1734389447233,-3536.68,0.00024999,4]
[345617774,1734389447244,-3536.68,0.00024999,4]
[345617775,1734389447254,-3536.68,0.00024999,4]
[345617776,1734389447263,-3536.68,0.00024999,4]
[345617777,1734389447275,-3536.68,0.00024999,4]
[345617778,1734389447287,-3536.68,0.00024999,4]
[345617779,1734389447296,-3536.69,0.00024999,4]
[345617780,1734389447306,-500.0,0.00024999,4]
[345617781,1734389447314,-500.0,0.00024999,4]
[345617782,1734389447324,-500.0,0.00024999,4]
[345617783,1734389447333,-500.0,0.00024999,4]
[345617784,1734389447343,-500.0,0.00024999,4]
[345617785,1734389447352,-500.0,0.00024999,4]
[345617786,1734389447362,-500.0,0.00024999,4]
[345617787,1734389447371,-500.0,0.00024999,4]
[345617788,1734389447380,-500.0,0.00024999,4]
[345617789,1734389447389,-368.7,0.00024999,4]
[345617790,1734389447398,-500.0,0.00024999,4]
[345617791,1734389447406,-500.0,0.00024999,4]
[345617792,1734389447415,-9004.41,0.00024999,4]
[345617793,1734389447424,-360.95643509,0.00024999,4]
[345617794,1734389447433,-9004.41,0.00024999,4]
[345617795,1734389447442,-9004.41,0.00024999,4]
[345617796,1734389447451,-9004.41,0.00024999,4]
[345617797,1734389447460,-9004.41,0.00024999,4]
[345617798,1734389447469,-9004.41,0.00024999,4]
[345617799,1734389447478,-9004.41,0.00024999,4]
[345617800,1734389447487,-9004.41,0.00024999,4]
[345617801,1734389447496,-9004.41,0.00024999,4]
[345617802,1734389447505,-9004.41,0.00024999,4]
[345617803,1734389447514,-9004.41,0.00024999,4]
[345617804,1734389447523,-9004.64345974,0.00024999,4]
[345617805,1734389447532,-500.0,0.00024999,4]
[345617806,1734389447544,-500.0,0.00024999,4]
[345617807,1734389447553,-500.0,0.00024999,4]
[345617808,1734389447562,-500.0,0.00024999,4]
[345617809,1734389447571,-500.0,0.00024999,4]
[345617810,1734389447580,-351.99865954,0.00024999,4]
[345617811,1734389447590,-500.0,0.00024999,4]
[345617812,1734389447600,-500.0,0.00024999,4]
[345617813,1734389447609,-500.0,0.00024999,4]
[345617814,1734389447618,-500.0,0.00024999,4]
[345617815,1734389447628,-500.0,0.00024999,4]
[345617816,1734389447637,-531.1,0.00024999,4]
[345617817,1734389447646,-500.0,0.00024999,4]
[345617818,1734389447656,-500.0,0.00024999,4]
[345617819,1734389447666,-500.0,0.00024999,4]
[345617820,1734389447675,-500.0,0.00024999,4]
[345617821,1734389447685,-500.0,0.00024999,4]
[345617822,1734389447695,-500.0,0.00024999,4]
[345617823,1734389447704,-500.0,0.00024999,4]
[345617824,1734389447714,-500.0,0.00024999,4]
[345617825,1734389447724,-500.0,0.00024999,4]
[345617826,1734389447733,-500.0,0.00024999,4]
[345617827,1734389447743,-500.0,0.00024999,4]
[345617828,1734389447753,-1158.19,0.00024999,4]
[345617829,1734389447762,-500.0,0.00024999,4]
[345617830,1734389447771,-1158.19,0.00024999,4]
[345617831,1734389447781,-1158.19,0.00024999,4]
[345617832,1734389447792,-500.0,0.00024999,4]
[345617833,1734389447802,-1158.19,0.00024999,4]
[345617834,1734389447811,-500.0,0.00024999,4]
[345617835,1734389447820,-1158.19,0.00024999,4]
[345617836,1734389447830,-1158.19,0.00024999,4]
[345617837,1734389447839,-500.0,0.00024999,4]
[345617838,1734389447849,-1158.19,0.00024999,4]
[345617839,1734389447859,-177.63,0.00024999,4]
[345617840,1734389447868,-1158.19,0.00024999,4]
[345617841,1734389447878,-1158.19,0.00024999,4]
[345617842,1734389447887,-4043877.28764495,0.00025,4]
[345617843,1734389447897,-1722.03849324,0.00025,2]
[345617844,1734389447906,-35356.47730302,0.00025,2]
[345617845,1734389447915,-28844550.990844,0.00025,2]
[345617846,1734389448101,-2626.386449,0.00024998,4]
[345617847,1734389448188,-368.45641558,0.00024898,4]
[345617848,1734389448202,-143.36254766,0.00024898,4]
[345617849,1734389448212,-244.35745233,0.00024998,4]
[345617850,1734389448264,-898.39609867,0.00024998,4]
[345617851,1734389448274,-1158.19,0.00024999,4]
[345617852,1734389448285,-3769.14,0.00024999,4]
[345617853,1734389448295,-1158.19,0.00024999,4]
[345617854,1734389448306,-3769.14,0.00024999,4]
[345617855,1734389448317,-1158.19,0.00024999,4]
[345617856,1734389448327,-3769.14,0.00024999,4]
[345617857,1734389448337,-1158.32,0.00024999,4]
[345617858,1734389448347,-3769.14,0.00024999,4]
[345617859,1734389448358,-3769.14,0.00024999,4]
[345617860,1734389448368,-3769.14,0.00024999,4]
[345617861,1734389448377,-3630.32337413,0.00024999,4]
[345617862,1734389448415,-138.81662587,0.00024999,4]
[345617863,1734389448424,-3769.14,0.00024999,4]
[345617864,1734389448435,-1111.08666699,0.00024999,4]
[345617865,1734389448447,-370.58734935,0.00024999,4]
[345617874,1734389970665,155.74,0.00010137,2]
[345617877,1734390269007,163.68,0.00013699,2]
[345617878,1734390297472,284.38951938,0.00013631,2]
[345617879,1734390418136,-174.38,0.0001888,2]
[345617880,1734390418321,-151.0,0.0002052,2]
[345617881,1734390418346,-377.97143369,0.0002052,2]
[345617882,1734390431086,-179.37715533,0.0002052,2]
[345617883,1734390453089,-289.22662013,0.0002052,2]
[345617884,1734390453110,-242.16184714,0.000209,2]
[345617885,1734390453132,-1000.0,0.00021,2]
[345617886,1734390453154,-1000.0,0.00021,2]
[345617887,1734390453175,-1000.0,0.00021,2]
[345617888,1734390453197,-1000.0,0.00021,2]
[345617889,1734390453227,-226.67462849,0.00021,2]
[345617896,1734390561102,-1000.0,0.00022,2]
[345617897,1734390561122,-1000.0,0.00022,2]
[345617898,1734390561144,-1000.0,0.00022,2]
[345617899,1734390561164,-1000.0,0.00022,2]
[345617900,1734390561184,-1000.0,0.00022,2]
[345617901,1734390561205,-183.76965842,0.00022,2]
[345617902,1734390570087,-816.23034158,0.00022,2]
[345617903,1734390570109,-1000.0,0.00022,2]
[345617904,1734390570131,-1000.0,0.00022,2]
[345617905,1734390570152,-1000.0,0.00022,2]
[345617906,1734390570173,-1000.0,0.00022,2]
[345617907,1734390570197,-824.53120949,0.00022,2]
[345617908,1734390570217,-200.0,0.00022,2]
[345617909,1734390570239,-890.39,0.00022033,2]
[345617917,1734390631581,-250.0,0.00022976,2]
[345617918,1734390631593,-757.88956673,0.00023,2]
[345617919,1734390631626,-1032.57380752,0.00023,2]
[345617920,1734390631635,-1463.26,0.0002303,2]
[345617921,1734390631645,-250.0,0.00023113,2]
[345617922,1734390631655,-561.49,0.00023119,2]
[345617923,1734390631664,-150.96,0.00023217,30]
[345617924,1734390631673,-155.1,0.00023373,2]
[345617925,1734390631683,-155.1,0.00023381,2]
[345617926,1734390631692,-155.1,0.00023389,2]
[345617927,1734390631702,-155.1,0.00023398,2]
[345617928,1734390631711,-155.1,0.00023406,2]
[345617929,1734390631721,-155.1,0.00023415,2]
[345617930,1734390631730,-155.1,0.00023423,2]
[345617931,1734390631739,-155.1,0.00023431,2]
[345617932,1734390631749,-155.1,0.0002344,2]
[345617933,1734390631759,-155.1,0.00023448,2]
[345617934,1734390631768,-155.1,0.00023456,2]
[345617935,1734390631777,-150.0,0.00023459,2]
[345617936,1734390631786,-250.0,0.00023463,2]
[345617937,1734390631796,-155.1,0.00023465,2]
[345617938,1734390631806,-155.1,0.00023473,2]
[345617939,1734390631815,-155.1,0.00023481,2]
[345617940,1734390631825,-155.1,0.0002349,2]
[345617941,1734390631834,-200.0,0.00023579,2]
[345617942,1734390631843,-150.0,0.00023579,2]
[345617943,1734390631853,-500.0,0.00023601,2]
[345617944,1734390631862,-250.0,0.00023607,2]
[345617945,1734390631871,-279.22,0.00023616,2]
[345617946,1734390631880,-23900.0,0.00023623,2]
[345617947,1734390631889,-704.54,0.00023685,2]
[345617948,1734390631899,-300.0,0.00023737,2]
[345617949,1734390631908,-921.36,0.00023745,2]
[345617950,1734390631917,-416.026,0.0002375,2]
[345617951,1734390631926,-200.0,0.00023797,2]
[345617952,1734390631936,-1000.0,0.00023829,2]
[345617953,1734390631945,-160.52,0.00023923,2]
[345617954,1734390631955,-3600.0,0.00024,3]
[345617955,1734390631964,-1538.21,0.00024055,2]
[345617956,1734390631974,-933.227,0.0002407,5]
[345617957,1734390631984,-271.0,0.0002425,2]
[345617958,1734390631994,-5927.60833996,0.00024256,2]
[345617959,1734390632014,-1049.39166004,0.00024256,2]
[345617960,1734390632023,-153.0,0.00024293,2]
[345617961,1734390632033,-153.0,0.00024293,2]
[345617962,1734390632042,-153.0,0.00024293,2]
[345617963,1734390632052,-153.0,0.00024293,2]